[Event "Live Chess"]
[Site "Chess.com"]
[Date "2023.05.21"]
[Round "-"]
[White "wadsy27"]
[Black "Biranidun"]
[Result "1-0"]
[WhiteElo "2547"]
[BlackElo "2517"]
[TimeControl "300"]
[EndTime "8:18:15 PDT"]
[Termination "wadsy27 won by resignation"]

1. c4 {[%clk 0:04:58.1]} 1... Nf6 {[%clk 0:04:59]} 2. g3 {[%clk 0:04:57.1]} 2...
g6 {[%clk 0:04:58.7]} 3. Bg2 {[%clk 0:04:56.5]} 3... Bg7 {[%clk 0:04:58.6]} 4.
Nc3 {[%clk 0:04:55.6]} 4... O-O {[%clk 0:04:58.5]} 5. Nf3 {[%clk 0:04:54.9]}
5... d6 {[%clk 0:04:58.4]} 6. O-O {[%clk 0:04:54.2]} 6... e5 {[%clk 0:04:58]} 7.
d3 {[%clk 0:04:53.8]} 7... Nc6 {[%clk 0:04:57.6]} 8. Rb1 {[%clk 0:04:52.8]} 8...
a5 {[%clk 0:04:57.3]} 9. a3 {[%clk 0:04:52.2]} 9... Nd4 {[%clk 0:04:54.1]} 10.
Bg5 {[%clk 0:04:44]} 10... Nxf3+ {[%clk 0:04:45.2]} 11. Bxf3 {[%clk 0:04:42.3]}
11... Bh3 {[%clk 0:04:43.8]} 12. Bxb7 {[%clk 0:04:35.6]} 12... Bxf1 {[%clk
0:04:41]} 13. Qxf1 {[%clk 0:04:29.3]} 13... Rb8 {[%clk 0:04:39.7]} 14. Qg2
{[%clk 0:04:25.1]} 14... h6 {[%clk 0:04:38.3]} 15. Bxf6 {[%clk 0:04:19]} 15...
Bxf6 {[%clk 0:04:38.2]} 16. b4 {[%clk 0:04:09.8]} 16... axb4 {[%clk 0:04:37.6]}
17. axb4 {[%clk 0:04:08.9]} 17... Bg7 {[%clk 0:04:36.8]} 18. Bc6 {[%clk
0:03:54.4]} 18... f5 {[%clk 0:04:31.3]} 19. b5 {[%clk 0:03:46.9]} 19... e4
{[%clk 0:04:29.8]} 20. Nd5 {[%clk 0:03:36.5]} 20... exd3 {[%clk 0:04:28.7]} 21.
exd3 {[%clk 0:03:35.5]} 21... Kh7 {[%clk 0:04:25]} 22. Re1 {[%clk 0:03:30.6]}
22... Bf6 {[%clk 0:04:03.3]} 23. h4 {[%clk 0:03:28.2]} 23... h5 {[%clk
0:04:01.6]} 24. Qf3 {[%clk 0:03:23.9]} 24... Kg7 {[%clk 0:04:00.6]} 25. Nf4
{[%clk 0:03:19.7]} 25... Qc8 {[%clk 0:03:44.5]} 26. Ne6+ {[%clk 0:03:14.3]}
26... Kh7 {[%clk 0:03:43.9]} 27. Nxf8+ {[%clk 0:03:03.6]} 27... Qxf8 {[%clk
0:03:43.8]} 28. Qd5 {[%clk 0:02:50.6]} 28... Qg7 {[%clk 0:03:41.7]} 29. Kg2
{[%clk 0:02:45.7]} 29... Rf8 {[%clk 0:03:39.3]} 30. Be8 {[%clk 0:02:02.9]} 30...
f4 {[%clk 0:03:35.7]} 31. Qe4 {[%clk 0:01:38.3]} 31... fxg3 {[%clk 0:03:33.6]}
32. fxg3 {[%clk 0:01:37.4]} 32... Be5 {[%clk 0:03:29.3]} 33. Bc6 {[%clk
0:01:32.8]} 33... Qf6 {[%clk 0:03:26.9]} 34. Qf3 {[%clk 0:01:25.9]} 34... Qg7
{[%clk 0:03:23.3]} 35. Qe2 {[%clk 0:01:24]} 35... Qh6 {[%clk 0:03:20.9]} 36. Be4
{[%clk 0:01:19.5]} 36... Kg7 {[%clk 0:03:19.6]} 37. Rf1 {[%clk 0:01:16.1]} 37...
Rxf1 {[%clk 0:03:18.4]} 38. Qxf1 {[%clk 0:01:15.3]} 38... Qd2+ {[%clk
0:03:17.6]} 39. Qf2 {[%clk 0:01:13.6]} 39... Qxf2+ {[%clk 0:03:13.6]} 40. Kxf2
{[%clk 0:01:13.5]} 40... Bd4+ {[%clk 0:03:13.2]} 41. Kf3 {[%clk 0:01:12.8]}
41... Kf6 {[%clk 0:03:12.7]} 42. Bc6 {[%clk 0:01:10.7]} 42... g5 {[%clk
0:03:11.3]} 43. Be8 {[%clk 0:01:08.1]} 43... gxh4 {[%clk 0:03:05.2]} 44. gxh4
{[%clk 0:01:07.2]} 44... Bc3 {[%clk 0:03:05.1]} 45. Bxh5 {[%clk 0:01:04.7]}
45... Be1 {[%clk 0:03:04.2]} 46. Kg4 {[%clk 0:01:03.1]} 46... Bf2 {[%clk
0:03:03.3]} 47. Be8 {[%clk 0:01:01]} 47... Be3 {[%clk 0:02:59.8]} 48. h5 {[%clk
0:00:57.6]} 48... Ke5 {[%clk 0:02:58.8]} 49. Bc6 {[%clk 0:00:54.4]} 49... Bh6
{[%clk 0:02:57.7]} 50. Be4 {[%clk 0:00:52.3]} 50... Bd2 {[%clk 0:02:56.6]} 51.
Kf3 {[%clk 0:00:51.5]} 51... Bh6 {[%clk 0:02:56]} 52. Ke2 {[%clk 0:00:51]} 52...
Bg5 {[%clk 0:02:54.4]} 53. Kd1 {[%clk 0:00:50.3]} 53... Kd4 {[%clk 0:02:53.3]}
54. Kc2 {[%clk 0:00:49.7]} 54... Bh6 {[%clk 0:02:51.4]} 55. Kb3 {[%clk 0:00:49]}
55... Bg5 {[%clk 0:02:49.1]} 56. Ka4 {[%clk 0:00:47.9]} 56... Bd2 {[%clk
0:02:48.3]} 57. b6 {[%clk 0:00:45.2]} 57... cxb6 {[%clk 0:02:46.9]} 58. Kb5
{[%clk 0:00:44.9]} 58... Ke5 {[%clk 0:02:36.8]} 59. Kxb6 {[%clk 0:00:43.5]}
59... Be3+ {[%clk 0:02:35.7]} 60. Kc6 {[%clk 0:00:42.7]} 60... Bh6 {[%clk
0:02:28.6]} 61. Bg6 {[%clk 0:00:41.7]} 61... Be3 {[%clk 0:02:27.4]} 62. Kd7
{[%clk 0:00:41.1]} 62... Bg5 {[%clk 0:02:21.5]} 63. Ke8 {[%clk 0:00:38.6]} 63...
Kf6 {[%clk 0:02:17.8]} 64. Kf8 {[%clk 0:00:36.6]} 64... Bh6+ {[%clk 0:02:07.8]}
65. Kg8 {[%clk 0:00:35.9]} 65... Bg7 {[%clk 0:01:52.5]} 66. Kh7 {[%clk
0:00:33.7]} 66... Bf8 {[%clk 0:01:51.8]} 67. Be8 {[%clk 0:00:31.3]} 67... Kg5
{[%clk 0:01:50]} 68. Bf7 {[%clk 0:00:28.5]} 68... Kf6 {[%clk 0:01:49]} 69. Kg8
{[%clk 0:00:26.4]} 69... Bh6 {[%clk 0:01:47.6]} 70. Bd5 {[%clk 0:00:25.4]} 70...
Bg7 {[%clk 0:01:46.1]} 71. Kh7 {[%clk 0:00:23.8]} 71... Bf8 {[%clk 0:01:44.7]}
72. Bf3 {[%clk 0:00:22.5]} 72... Kg5 {[%clk 0:01:41.9]} 73. Kg8 {[%clk 0:00:21]}
73... Bh6 {[%clk 0:01:40.9]} 74. d4 {[%clk 0:00:19.5]} 74... Kf6 {[%clk
0:01:39.5]} 75. c5 {[%clk 0:00:18.2]} 75... dxc5 {[%clk 0:01:38.6]} 76. dxc5
{[%clk 0:00:17.6]} 76... Ke7 {[%clk 0:01:32.2]} 77. c6 {[%clk 0:00:16.9]} 77...
Kd6 {[%clk 0:01:31.3]} 78. Kh7 {[%clk 0:00:16.2]} 78... Bf4 {[%clk 0:01:29]} 79.
h6 {[%clk 0:00:15.9]} 1-0

[Event "Live Chess"]
[Site "Chess.com"]
[Date "2023.05.21"]
[Round "-"]
[White "SimpleHarmonic1"]
[Black "hturner40"]
[Result "0-1"]
[WhiteElo "2037"]
[BlackElo "1798"]
[TimeControl "300"]
[EndTime "8:18:26 PDT"]
[Termination "hturner40 won by resignation"]

1. e4 {[%clk 0:04:58.5]} 1... Nc6 {[%clk 0:04:58.5]} 2. Nf3 {[%clk 0:04:56.7]}
2... e5 {[%clk 0:04:57.4]} 3. Bb5 {[%clk 0:04:54.5]} 3... f5 {[%clk 0:04:55.6]}
4. Nc3 {[%clk 0:04:49.8]} 4... fxe4 {[%clk 0:04:53.5]} 5. Nxe4 {[%clk
0:04:47.4]} 5... Nf6 {[%clk 0:04:52.3]} 6. Nxf6+ {[%clk 0:04:45.1]} 6... gxf6
{[%clk 0:04:50.2]} 7. O-O {[%clk 0:04:44.5]} 7... d5 {[%clk 0:04:43.3]} 8. Re1
{[%clk 0:04:37.5]} 8... Bg4 {[%clk 0:04:36.9]} 9. h3 {[%clk 0:04:33.6]} 9... Bh5
{[%clk 0:04:35.4]} 10. Be2 {[%clk 0:04:31.2]} 10... Be7 {[%clk 0:04:06]} 11. d4
{[%clk 0:04:13.6]} 11... Bxf3 {[%clk 0:03:49.5]} 12. Bxf3 {[%clk 0:04:11.2]}
12... Nxd4 {[%clk 0:03:48]} 13. Bh5+ {[%clk 0:04:10.5]} 13... Kd7 {[%clk
0:03:38.1]} 14. c3 {[%clk 0:04:07.8]} 14... Nb5 {[%clk 0:03:12.1]} 15. Qxd5+
{[%clk 0:04:05]} 15... Nd6 {[%clk 0:03:10.7]} 16. Bg4+ {[%clk 0:04:03.1]} 16...
Ke8 {[%clk 0:03:02.8]} 17. Qe6 {[%clk 0:03:59.7]} 17... h5 {[%clk 0:02:50.3]}
18. Bxh5+ {[%clk 0:03:44.6]} 18... Rxh5 {[%clk 0:02:39.1]} 19. Qg8+ {[%clk
0:03:41]} 19... Kd7 {[%clk 0:02:16.3]} 20. Qg4+ {[%clk 0:03:37.3]} 20... f5
{[%clk 0:02:13.2]} 21. Qxh5 {[%clk 0:03:34.6]} 21... Bf6 {[%clk 0:01:45.5]} 22.
Qxf5+ {[%clk 0:03:32.7]} 22... Nxf5 {[%clk 0:01:42.7]} 23. Be3 {[%clk
0:03:24.3]} 23... Nd6 {[%clk 0:01:38.1]} 24. Rad1 {[%clk 0:03:21.6]} 24... Qg8
{[%clk 0:01:33.8]} 25. b3 {[%clk 0:03:18.2]} 25... Qg6 {[%clk 0:01:23.6]} 26. c4
{[%clk 0:03:18.1]} 26... Rg8 {[%clk 0:01:20.5]} 27. g3 {[%clk 0:03:17.5]} 27...
Kc8 {[%clk 0:01:17]} 0-1

[Event "Live Chess"]
[Site "Chess.com"]
[Date "2023.05.21"]
[Round "-"]
[White "djw60"]
[Black "Crowded_House"]
[Result "1-0"]
[WhiteElo "2168"]
[BlackElo "1612"]
[TimeControl "300"]
[EndTime "8:18:30 PDT"]
[Termination "djw60 won by resignation"]

1. Nf3 {[%clk 0:04:58.7]} 1... e6 {[%clk 0:04:59.5]} 2. d4 {[%clk 0:04:56.4]}
2... d5 {[%clk 0:04:59.2]} 3. c4 {[%clk 0:04:54.8]} 3... c5 {[%clk 0:04:58.8]}
4. cxd5 {[%clk 0:04:51.8]} 4... Qxd5 {[%clk 0:04:58]} 5. Nc3 {[%clk 0:04:50.1]}
5... Qc6 {[%clk 0:04:53]} 6. e4 {[%clk 0:04:47.6]} 6... Nf6 {[%clk 0:04:46.4]}
7. Bb5 {[%clk 0:04:45.8]} 7... Bd7 {[%clk 0:04:37.3]} 8. Bxc6 {[%clk 0:04:43.8]}
8... Bxc6 {[%clk 0:04:36.3]} 9. d5 {[%clk 0:04:42.6]} 9... exd5 {[%clk
0:04:34.4]} 10. exd5 {[%clk 0:04:41.5]} 10... Bd7 {[%clk 0:04:29.4]} 11. O-O
{[%clk 0:04:40.2]} 11... Be7 {[%clk 0:04:27.9]} 12. d6 {[%clk 0:04:38.7]} 1-0

[Event "Live Chess"]
[Site "Chess.com"]
[Date "2023.05.21"]
[Round "-"]
[White "Bot_Boy"]
[Black "LordBenin"]
[Result "0-1"]
[WhiteElo "332"]
[BlackElo "1402"]
[TimeControl "300"]
[EndTime "8:18:38 PDT"]
[Termination "LordBenin won by checkmate"]

1. c4 {[%clk 0:04:56.4]} 1... Nf6 {[%clk 0:04:58.4]} 2. Nc3 {[%clk 0:04:55]}
2... e6 {[%clk 0:04:56.4]} 3. d4 {[%clk 0:04:54.3]} 3... g6 {[%clk 0:04:54.8]}
4. e4 {[%clk 0:04:52.9]} 4... Bg7 {[%clk 0:04:51.7]} 5. Bd3 {[%clk 0:04:50.8]}
5... d5 {[%clk 0:04:46.9]} 6. e5 {[%clk 0:04:44.3]} 6... Nfd7 {[%clk 0:04:43.6]}
7. cxd5 {[%clk 0:04:32.9]} 7... exd5 {[%clk 0:04:39.3]} 8. Nxd5 {[%clk 0:04:27]}
8... c6 {[%clk 0:04:30.9]} 9. Ne3 {[%clk 0:04:14.4]} 9... O-O {[%clk 0:04:26.5]}
10. h4 {[%clk 0:04:10.2]} 10... h5 {[%clk 0:04:22.4]} 11. g4 {[%clk 0:04:03.5]}
11... hxg4 {[%clk 0:04:15.5]} 12. Nxg4 {[%clk 0:04:00]} 12... c5 {[%clk
0:04:07.9]} 13. Bg5 {[%clk 0:03:43.5]} 13... Qa5+ {[%clk 0:04:01.1]} 14. Kf1
{[%clk 0:03:27.7]} 14... cxd4 {[%clk 0:03:50.9]} 15. Nf6+ {[%clk 0:03:19.8]}
15... Bxf6 {[%clk 0:03:19.1]} 16. Bxf6 {[%clk 0:03:12.6]} 16... Nxf6 {[%clk
0:03:14.3]} 17. exf6 {[%clk 0:03:04.1]} 17... Qe5 {[%clk 0:03:05.7]} 18. h5
{[%clk 0:02:52.1]} 18... Qxf6 {[%clk 0:03:00.9]} 19. hxg6 {[%clk 0:02:42.9]}
19... fxg6 {[%clk 0:02:59.7]} 20. Qb3+ {[%clk 0:02:34.7]} 20... Be6 {[%clk
0:02:57]} 21. Bc4 {[%clk 0:02:32.3]} 21... Qxf2# {[%clk 0:02:54.7]} 0-1

[Event "Live Chess"]
[Site "Chess.com"]
[Date "2023.05.21"]
[Round "-"]
[White "Tema1107"]
[Black "onemoretime1975"]
[Result "1-0"]
[WhiteElo "1943"]
[BlackElo "1839"]
[TimeControl "300"]
[EndTime "8:18:42 PDT"]
[Termination "Tema1107 won by resignation"]

1. c4 {[%clk 0:04:58.5]} 1... e6 {[%clk 0:04:58.1]} 2. d4 {[%clk 0:04:55]} 2...
d5 {[%clk 0:04:57]} 3. Nc3 {[%clk 0:04:54.1]} 3... Nf6 {[%clk 0:04:55.3]} 4. Nf3
{[%clk 0:04:52.6]} 4... Be7 {[%clk 0:04:50.4]} 5. e3 {[%clk 0:04:49.6]} 5... c6
{[%clk 0:04:47.9]} 6. Qc2 {[%clk 0:04:31.1]} 6... Nbd7 {[%clk 0:04:44.4]} 7. b3
{[%clk 0:04:25.3]} 7... O-O {[%clk 0:04:40.2]} 8. Bd3 {[%clk 0:04:21.5]} 8...
Re8 {[%clk 0:04:35.4]} 9. O-O {[%clk 0:04:10.9]} 9... g6 {[%clk 0:04:29.3]} 10.
Bb2 {[%clk 0:04:04.7]} 10... Bf8 {[%clk 0:04:22.7]} 11. Rad1 {[%clk 0:03:46.9]}
11... Bg7 {[%clk 0:04:20.5]} 12. e4 {[%clk 0:03:31.8]} 12... dxe4 {[%clk
0:04:18.4]} 13. Nxe4 {[%clk 0:03:31.7]} 13... Nxe4 {[%clk 0:04:16.9]} 14. Bxe4
{[%clk 0:03:31.5]} 14... Nf6 {[%clk 0:04:15.5]} 15. Rfe1 {[%clk 0:02:38]} 15...
Nxe4 {[%clk 0:04:11.6]} 16. Rxe4 {[%clk 0:02:34.8]} 16... Qc7 {[%clk 0:03:58.6]}
17. d5 {[%clk 0:02:21.9]} 17... Bxb2 {[%clk 0:03:49.5]} 18. Qxb2 {[%clk
0:02:21.8]} 18... cxd5 {[%clk 0:03:17.9]} 19. cxd5 {[%clk 0:01:37]} 19... Bd7
{[%clk 0:03:15.4]} 20. d6 {[%clk 0:01:00.2]} 20... Qb6 {[%clk 0:03:13]} 21. Rh4
{[%clk 0:00:50.6]} 21... Bc6 {[%clk 0:02:57.1]} 22. Ng5 {[%clk 0:00:32.1]} 22...
h6 {[%clk 0:02:50]} 23. Qf6 {[%clk 0:00:25]} 23... Rf8 {[%clk 0:02:35.7]} 24.
Nxe6 {[%clk 0:00:16.1]} 24... Qxf2+ {[%clk 0:02:12.1]} 25. Qxf2 {[%clk
0:00:09.2]} 25... fxe6 {[%clk 0:02:11]} 26. Qe3 {[%clk 0:00:08.8]} 26... g5
{[%clk 0:02:06]} 27. Rxh6 {[%clk 0:00:06.1]} 27... Rf7 {[%clk 0:01:58.6]} 28.
Qxg5+ {[%clk 0:00:05.1]} 28... Rg7 {[%clk 0:01:57]} 29. Rg6 {[%clk 0:00:04.7]}
29... Rxg6 {[%clk 0:01:48.9]} 30. Qxg6+ {[%clk 0:00:04.6]} 30... Kf8 {[%clk
0:01:42.4]} 31. Qf6+ {[%clk 0:00:04.5]} 31... Kg8 {[%clk 0:01:34.8]} 32. Rd4
{[%clk 0:00:04.2]} 32... Be4 {[%clk 0:01:27.1]} 33. Rxe4 {[%clk 0:00:03.3]} 1-0

[Event "Live Chess"]
[Site "Chess.com"]
[Date "2023.05.21"]
[Round "-"]
[White "peter-785"]
[Black "DRS44"]
[Result "1-0"]
[WhiteElo "1181"]
[BlackElo "1239"]
[TimeControl "300"]
[EndTime "8:18:45 PDT"]
[Termination "peter-785 won by checkmate"]

1. e4 {[%clk 0:04:59]} 1... e5 {[%clk 0:04:54.6]} 2. Nf3 {[%clk 0:04:57.6]} 2...
d6 {[%clk 0:04:46.8]} 3. Bc4 {[%clk 0:04:56.1]} 3... f5 {[%clk 0:04:42.6]} 4. d3
{[%clk 0:04:52.7]} 4... Nf6 {[%clk 0:04:37.4]} 5. Bg5 {[%clk 0:04:47.7]} 5... h6
{[%clk 0:04:32.5]} 6. Bxf6 {[%clk 0:04:44.3]} 6... Qxf6 {[%clk 0:04:27.5]} 7.
exf5 {[%clk 0:04:39.1]} 7... Bxf5 {[%clk 0:04:18]} 8. Nbd2 {[%clk 0:04:22.8]}
8... Nc6 {[%clk 0:04:13.4]} 9. Ne4 {[%clk 0:04:21.4]} 9... Bxe4 {[%clk
0:04:07.3]} 10. dxe4 {[%clk 0:04:19.6]} 10... Nd4 {[%clk 0:04:02.8]} 11. Nxd4
{[%clk 0:04:05.2]} 11... exd4 {[%clk 0:03:58.2]} 12. O-O {[%clk 0:04:03.9]}
12... Be7 {[%clk 0:03:51.2]} 13. Qf3 {[%clk 0:03:42.4]} 13... O-O-O {[%clk
0:03:43]} 14. Qxf6 {[%clk 0:03:36.3]} 14... Bxf6 {[%clk 0:03:36.5]} 15. Rab1
{[%clk 0:03:21.2]} 15... a6 {[%clk 0:03:29.6]} 16. f3 {[%clk 0:03:19.9]} 16...
b5 {[%clk 0:03:21.2]} 17. Be6+ {[%clk 0:03:14.7]} 17... Kb7 {[%clk 0:03:15.3]}
18. Rfd1 {[%clk 0:03:10.2]} 18... c5 {[%clk 0:03:05.3]} 19. a3 {[%clk
0:03:02.5]} 19... c4 {[%clk 0:03:01.5]} 20. b4 {[%clk 0:02:46.2]} 20... c3
{[%clk 0:02:53.9]} 21. f4 {[%clk 0:02:28.8]} 21... Ra8 {[%clk 0:02:38.2]} 22.
Bd5+ {[%clk 0:02:25.5]} 22... Kb6 {[%clk 0:02:32.7]} 23. Bxa8 {[%clk 0:02:24.9]}
23... Rxa8 {[%clk 0:02:30.5]} 24. Rd3 {[%clk 0:02:16.5]} 24... a5 {[%clk
0:02:22.8]} 25. bxa5+ {[%clk 0:02:11.9]} 25... Rxa5 {[%clk 0:02:18.6]} 26. Rb3
{[%clk 0:02:11.1]} 26... Be7 {[%clk 0:02:06.5]} 27. Rxd4 {[%clk 0:02:04.5]}
27... d5 {[%clk 0:01:59.2]} 28. Rxd5 {[%clk 0:01:55.3]} 28... Bxa3 {[%clk
0:01:54.7]} 29. Rd7 {[%clk 0:01:48.7]} 29... Bb2 {[%clk 0:01:41.6]} 30. Rxg7
{[%clk 0:01:34.3]} 30... Ra1+ {[%clk 0:01:37.5]} 31. Kf2 {[%clk 0:01:33.8]}
31... Bc1 {[%clk 0:01:23.1]} 32. f5 {[%clk 0:01:29.2]} 32... Bf4 {[%clk
0:01:14.9]} 33. Rg6+ {[%clk 0:01:27.5]} 33... Kc7 {[%clk 0:01:08.4]} 34. Rxc3+
{[%clk 0:01:25.2]} 34... Kd7 {[%clk 0:01:04.2]} 35. Rd3+ {[%clk 0:01:23.1]}
35... Ke7 {[%clk 0:01:00.9]} 36. Re6+ {[%clk 0:01:22.5]} 36... Kf7 {[%clk
0:00:57.6]} 37. Rd7+ {[%clk 0:01:17.2]} 37... Kf8 {[%clk 0:00:53.5]} 38. Rb7
{[%clk 0:01:05.4]} 38... Ra2 {[%clk 0:00:41.2]} 39. Rc6 {[%clk 0:01:00.6]} 39...
Ke8 {[%clk 0:00:26.5]} 40. Rc8# {[%clk 0:00:57.4]} 1-0

[Event "Live Chess"]
[Site "Chess.com"]
[Date "2023.05.21"]
[Round "-"]
[White "TheSmoulderingMaster"]
[Black "wot-not"]
[Result "1-0"]
[WhiteElo "1662"]
[BlackElo "1512"]
[TimeControl "300"]
[EndTime "8:18:49 PDT"]
[Termination "TheSmoulderingMaster won by resignation"]

1. e4 {[%clk 0:04:58.9]} 1... e6 {[%clk 0:04:51.9]} 2. d4 {[%clk 0:04:57.4]}
2... d5 {[%clk 0:04:51]} 3. Nc3 {[%clk 0:04:56.8]} 3... Nf6 {[%clk 0:04:49.1]}
4. Bg5 {[%clk 0:04:55.4]} 4... Bb4 {[%clk 0:04:47.9]} 5. e5 {[%clk 0:04:53.2]}
5... h6 {[%clk 0:04:47.1]} 6. Bxf6 {[%clk 0:04:51.6]} 6... gxf6 {[%clk
0:04:43.8]} 7. Nf3 {[%clk 0:04:51]} 7... fxe5 {[%clk 0:04:31.6]} 8. Nxe5 {[%clk
0:04:49]} 8... Nc6 {[%clk 0:04:30.8]} 9. Bb5 {[%clk 0:04:42.1]} 9... Bd7 {[%clk
0:04:28.6]} 10. Nxd7 {[%clk 0:04:35.5]} 10... Qxd7 {[%clk 0:04:26.7]} 11. O-O
{[%clk 0:04:34.5]} 11... O-O-O {[%clk 0:04:22]} 12. Na4 {[%clk 0:04:31.1]} 12...
a6 {[%clk 0:04:10]} 13. Bxc6 {[%clk 0:04:23.8]} 13... Qxc6 {[%clk 0:04:09]} 14.
a3 {[%clk 0:04:23.2]} 14... Qxa4 {[%clk 0:04:05.5]} 15. axb4 {[%clk 0:04:22.1]}
15... Qxb4 {[%clk 0:04:04.8]} 16. Qh5 {[%clk 0:04:18.9]} 16... Qxd4 {[%clk
0:03:57.5]} 17. Qxf7 {[%clk 0:04:16.9]} 17... e5 {[%clk 0:03:53.4]} 18. Qe6+
{[%clk 0:04:14.1]} 18... Kb8 {[%clk 0:03:51.7]} 19. c3 {[%clk 0:04:12.3]} 19...
Qf4 {[%clk 0:03:41.4]} 20. g3 {[%clk 0:04:08.8]} 20... Qg5 {[%clk 0:03:21.2]}
21. Ra3 {[%clk 0:04:00.6]} 21... e4 {[%clk 0:03:15.9]} 22. Rb3 {[%clk
0:03:57.5]} 22... h5 {[%clk 0:03:10]} 23. Qxa6 {[%clk 0:03:56.2]} 23... b6
{[%clk 0:03:04.4]} 24. Ra3 {[%clk 0:03:55]} 1-0

[Event "Live Chess"]
[Site "Chess.com"]
[Date "2023.05.21"]
[Round "-"]
[White "ShanthamGrarks"]
[Black "Trendle"]
[Result "0-1"]
[WhiteElo "1955"]
[BlackElo "2659"]
[TimeControl "300"]
[EndTime "8:18:59 PDT"]
[Termination "Trendle won by checkmate"]

1. d4 {[%clk 0:04:57]} 1... e6 {[%clk 0:04:58]} 2. Nc3 {[%clk 0:04:55.2]} 2...
Nf6 {[%clk 0:04:51.2]} 3. e4 {[%clk 0:04:49]} 3... d5 {[%clk 0:04:50.3]} 4. Bg5
{[%clk 0:04:46.6]} 4... Be7 {[%clk 0:04:48]} 5. e5 {[%clk 0:04:45.7]} 5... Nfd7
{[%clk 0:04:46.7]} 6. h4 {[%clk 0:04:45.3]} 6... Nc6 {[%clk 0:04:43.4]} 7. Qg4
{[%clk 0:04:42.4]} 7... f6 {[%clk 0:04:36.4]} 8. Qxe6 {[%clk 0:04:27.8]} 8...
Nb6 {[%clk 0:04:20.8]} 9. Qxc6+ {[%clk 0:03:59.4]} 9... bxc6 {[%clk 0:04:19]}
10. Bf4 {[%clk 0:03:58.3]} 10... Bf5 {[%clk 0:04:17.2]} 11. Nf3 {[%clk
0:03:54.7]} 11... Rb8 {[%clk 0:04:14.8]} 12. Bd3 {[%clk 0:03:34.5]} 12... Qd7
{[%clk 0:04:13.9]} 13. O-O {[%clk 0:03:25.9]} 13... Nc4 {[%clk 0:04:12.1]} 14.
Bxc4 {[%clk 0:03:23.3]} 14... dxc4 {[%clk 0:04:09.4]} 15. exf6 {[%clk
0:03:18.5]} 15... gxf6 {[%clk 0:04:05.7]} 16. d5 {[%clk 0:03:13.2]} 16... cxd5
{[%clk 0:04:03.7]} 17. Nd4 {[%clk 0:03:12.8]} 17... Rg8 {[%clk 0:03:58.3]} 18.
Rfe1 {[%clk 0:03:08.8]} 18... Kf7 {[%clk 0:03:52.9]} 19. Re3 {[%clk 0:03:03.1]}
19... Bc5 {[%clk 0:03:50.9]} 20. Nce2 {[%clk 0:03:01.1]} 20... Rxb2 {[%clk
0:03:45.3]} 21. c3 {[%clk 0:02:45.1]} 21... Bd3 {[%clk 0:03:41.4]} 22. Ng3
{[%clk 0:02:36.6]} 22... Qg4 {[%clk 0:03:31.1]} 23. Bxc7 {[%clk 0:02:28.6]}
23... Qxh4 {[%clk 0:03:27]} 24. Rf3 {[%clk 0:02:20.8]} 24... Bxd4 {[%clk
0:03:18.7]} 25. cxd4 {[%clk 0:02:19]} 25... Qxd4 {[%clk 0:03:17.1]} 26. Re1
{[%clk 0:02:14.5]} 26... Rb1 {[%clk 0:03:14.2]} 27. Rxb1 {[%clk 0:02:08.1]}
27... Bxb1 {[%clk 0:03:13.4]} 28. Nh5 {[%clk 0:02:07.8]} 28... Rg6 {[%clk
0:03:05.4]} 29. Nf4 {[%clk 0:02:02.2]} 29... Qd1+ {[%clk 0:02:53.5]} 30. Kh2
{[%clk 0:02:00.6]} 30... Rh6+ {[%clk 0:02:52.6]} 31. Kg3 {[%clk 0:01:59.9]}
31... Be4 {[%clk 0:02:50.2]} 32. Ra3 {[%clk 0:01:45.3]} 32... Qh1 {[%clk
0:02:41.3]} 33. f3 {[%clk 0:01:39.9]} 33... Qh4# {[%clk 0:02:39.7]} 0-1

[Event "Live Chess"]
[Site "Chess.com"]
[Date "2023.05.21"]
[Round "-"]
[White "viktorskliarov"]
[Black "Mikhail_Golubev"]
[Result "1-0"]
[WhiteElo "2634"]
[BlackElo "2420"]
[TimeControl "300"]
[EndTime "8:19:05 PDT"]
[Termination "viktorskliarov won on time"]

1. e4 {[%clk 0:04:57.9]} 1... c5 {[%clk 0:04:58.5]} 2. Nf3 {[%clk 0:04:57]} 2...
d6 {[%clk 0:04:55.2]} 3. d4 {[%clk 0:04:54.5]} 3... cxd4 {[%clk 0:04:52.6]} 4.
Qxd4 {[%clk 0:04:54.4]} 4... Nc6 {[%clk 0:04:48.6]} 5. Bb5 {[%clk 0:04:52.5]}
5... Bd7 {[%clk 0:04:47.7]} 6. Bxc6 {[%clk 0:04:51.1]} 6... Bxc6 {[%clk
0:04:46.7]} 7. Nc3 {[%clk 0:04:50.5]} 7... Nf6 {[%clk 0:04:45.3]} 8. Bg5 {[%clk
0:04:49.2]} 8... e6 {[%clk 0:04:44.6]} 9. O-O-O {[%clk 0:04:47.3]} 9... Be7
{[%clk 0:04:43.9]} 10. Rhe1 {[%clk 0:04:43.5]} 10... O-O {[%clk 0:04:36.4]} 11.
Kb1 {[%clk 0:04:41.5]} 11... Qc7 {[%clk 0:04:28.7]} 12. Qd3 {[%clk 0:04:38.1]}
12... a6 {[%clk 0:04:20.1]} 13. Nd4 {[%clk 0:04:36.5]} 13... b5 {[%clk
0:04:19.3]} 14. f3 {[%clk 0:04:35.8]} 14... Rfc8 {[%clk 0:04:12.6]} 15. g4
{[%clk 0:04:33.9]} 15... Be8 {[%clk 0:04:09.9]} 16. h4 {[%clk 0:04:31.3]} 16...
b4 {[%clk 0:04:04.7]} 17. Nce2 {[%clk 0:04:30.1]} 17... Bb5 {[%clk 0:03:57.2]}
18. Nxb5 {[%clk 0:04:03.7]} 18... axb5 {[%clk 0:03:57.1]} 19. Nd4 {[%clk
0:04:01.3]} 1-0

[Event "Live Chess"]
[Site "Chess.com"]
[Date "2023.05.21"]
[Round "-"]
[White "martinsmartin63"]
[Black "nitrofish07"]
[Result "1-0"]
[WhiteElo "767"]
[BlackElo "1814"]
[TimeControl "300"]
[EndTime "8:19:16 PDT"]
[Termination "martinsmartin63 won by resignation"]

1. Nf3 {[%clk 0:04:57.9]} 1... Nf6 {[%clk 0:04:58.6]} 2. d4 {[%clk 0:04:55.9]}
2... d5 {[%clk 0:04:57.7]} 3. Nc3 {[%clk 0:04:49.7]} 3... Bf5 {[%clk 0:04:56.1]}
4. e3 {[%clk 0:04:46.7]} 4... c5 {[%clk 0:04:54.3]} 5. Bb5+ {[%clk 0:04:44.2]}
5... Nbd7 {[%clk 0:04:52.6]} 6. Ne5 {[%clk 0:04:40.2]} 6... a6 {[%clk
0:04:49.9]} 7. Bxd7+ {[%clk 0:04:37.4]} 7... Nxd7 {[%clk 0:04:48.9]} 8. Nxf7
{[%clk 0:04:31.6]} 8... Kxf7 {[%clk 0:04:46.6]} 9. Qf3 {[%clk 0:04:28.6]} 9...
Kf6 {[%clk 0:04:40.5]} 10. e4 {[%clk 0:04:24.3]} 10... dxe4 {[%clk 0:04:24.7]}
11. Nxe4+ {[%clk 0:04:21.3]} 11... Ke6 {[%clk 0:04:14.9]} 12. Ng5+ {[%clk
0:04:13.6]} 12... Kf6 {[%clk 0:04:08.6]} 13. Ne4+ {[%clk 0:04:10.6]} 13... Ke6
{[%clk 0:04:07.2]} 14. Ng5+ {[%clk 0:04:07.3]} 14... Kd6 {[%clk 0:04:05.2]} 15.
Qxf5 {[%clk 0:04:01.8]} 15... cxd4 {[%clk 0:04:03]} 16. Qe6+ {[%clk 0:03:59.5]}
16... Kc7 {[%clk 0:04:01.3]} 17. Bf4+ {[%clk 0:03:51.8]} 17... Kc8 {[%clk
0:03:58.8]} 18. Qc4+ {[%clk 0:03:30.7]} 1-0